[Event "*** Titled Tuesday 3|2 Blitz"]
[Site "Chess.com"]
[Date "2014.12.30"]
[Round "4"]
[White "AungTZ"]
[Black "steinitz_attack"]
[Result "1-0"]
[WhiteElo "2018"]
[BlackElo "1751"]
[TimeControl "180+2"]
[EndTime "11:45:48 PST"]
[Termination "AungTZ won by checkmate"]

1. e4 {[%clk 0:02:58.9]} 1... d6 {[%clk 0:02:58.9]} 2. d4 {[%clk 0:02:59]} 2...
Nf6 {[%clk 0:02:59]} 3. Nc3 {[%clk 0:03:00.6]} 3... g6 {[%clk 0:03:00.4]} 4. Be2
{[%clk 0:03:00.9]} 4... Bg7 {[%clk 0:03:01.5]} 5. h4 {[%clk 0:03:02.5]} 5... h5
{[%clk 0:02:59.7]} 6. Nf3 {[%clk 0:03:02.5]} 6... Bg4 {[%clk 0:02:59.7]} 7. Ng5
{[%clk 0:03:03.4]} 7... Bxe2 {[%clk 0:02:59.7]} 8. Qxe2 {[%clk 0:03:03.9]} 8...
c5 {[%clk 0:02:56.6]} 9. d5 {[%clk 0:03:03.6]} 9... Nbd7 {[%clk 0:02:57.2]} 10.
f3 {[%clk 0:03:04.4]} 10... a6 {[%clk 0:02:56.6]} 11. Be3 {[%clk 0:03:04.8]}
11... b5 {[%clk 0:02:48.2]} 12. O-O {[%clk 0:03:04.3]} 12... O-O {[%clk
0:02:41.9]} 13. Rae1 {[%clk 0:03:03.5]} 13... Ne5 {[%clk 0:02:37.3]} 14. b3
{[%clk 0:03:02.4]} 14... Qa5 {[%clk 0:02:34.4]} 15. Bd2 {[%clk 0:02:48.5]} 15...
Rac8 {[%clk 0:02:17]} 16. a4 {[%clk 0:02:40.4]} 16... b4 {[%clk 0:02:13.7]} 17.
Nd1 {[%clk 0:02:39.5]} 17... Qb6 {[%clk 0:02:13.9]} 18. Be3 {[%clk 0:02:38.1]}
18... Rfe8 {[%clk 0:01:55.9]} 19. Nb2 {[%clk 0:02:36.2]} 19... a5 {[%clk
0:01:53.9]} 20. Nc4 {[%clk 0:02:35.5]} 20... Nxc4 {[%clk 0:01:54.5]} 21. Qxc4
{[%clk 0:02:35.7]} 21... Nd7 {[%clk 0:01:52.5]} 22. f4 {[%clk 0:02:33.6]} 22...
Bc3 {[%clk 0:01:51.1]} 23. Re2 {[%clk 0:02:29.1]} 23... Kg7 {[%clk 0:01:47.2]}
24. e5 {[%clk 0:01:55.8]} 24... dxe5 {[%clk 0:01:40.9]} 25. f5 {[%clk
0:01:52.3]} 25... Bd4 {[%clk 0:01:06.1]} 26. d6 {[%clk 0:01:48.4]} 26... Qxd6
{[%clk 0:01:02.1]} 27. Qxf7+ {[%clk 0:01:47.5]} 27... Kh8 {[%clk 0:00:47.3]} 28.
Qh7# {[%clk 0:01:47.8]} 1-0

[Event "*** Titled Tuesday 3|2 Blitz"]
[Site "Chess.com"]
[Date "2014.12.30"]
[Round "4"]
[White "AlmirDzhumaev"]
[Black "Hafez_Bakr"]
[Result "1-0"]
[WhiteElo "2071"]
[BlackElo "1769"]
[TimeControl "180+2"]
[EndTime "11:46:21 PST"]
[Termination "AlmirDzhumaev won by resignation"]

1. e4 {[%clk 0:03:00]} 1... c5 {[%clk 0:02:44.4]} 2. Nc3 {[%clk 0:02:59.6]} 2...
d6 {[%clk 0:02:44.7]} 3. g3 {[%clk 0:03:01.5]} 3... Nf6 {[%clk 0:02:44.5]} 4.
Bg2 {[%clk 0:03:03.4]} 4... g6 {[%clk 0:02:45]} 5. d3 {[%clk 0:03:05.3]} 5...
Bg7 {[%clk 0:02:46]} 6. Be3 {[%clk 0:03:05.7]} 6... Nc6 {[%clk 0:02:45.3]} 7. h3
{[%clk 0:03:04.8]} 7... h5 {[%clk 0:02:44.9]} 8. Qd2 {[%clk 0:03:05.7]} 8... Bd7
{[%clk 0:02:44.7]} 9. f4 {[%clk 0:03:06.3]} 9... Rc8 {[%clk 0:02:40.7]} 10. Nge2
{[%clk 0:03:01.5]} 10... e5 {[%clk 0:02:39.6]} 11. O-O {[%clk 0:02:54.7]} 11...
Nd4 {[%clk 0:02:38]} 12. fxe5 {[%clk 0:02:51.5]} 12... dxe5 {[%clk 0:02:36.1]}
13. Bg5 {[%clk 0:02:52.7]} 13... Rc6 {[%clk 0:02:35.2]} 14. Nd5 {[%clk 0:02:53]}
14... Bc8 {[%clk 0:02:24.6]} 15. Nec3 {[%clk 0:02:54.1]} 15... Qa5 {[%clk
0:02:15.3]} 16. Nxf6+ {[%clk 0:02:53.3]} 16... Bxf6 {[%clk 0:02:15]} 17. Bxf6
{[%clk 0:02:54.8]} 17... O-O {[%clk 0:02:13.4]} 18. Bxe5 {[%clk 0:02:55.4]}
18... f6 {[%clk 0:02:11.6]} 19. Bxd4 {[%clk 0:02:49.3]} 19... cxd4 {[%clk
0:02:11.2]} 20. Nb1 {[%clk 0:02:43.3]} 20... Qxd2 {[%clk 0:02:10.4]} 21. Nxd2
{[%clk 0:02:44.7]} 21... Rxc2 {[%clk 0:02:11.9]} 22. Rf2 {[%clk 0:02:40.4]}
22... Rxb2 {[%clk 0:02:12.3]} 23. Nb3 {[%clk 0:02:38.8]} 23... Rxf2 {[%clk
0:02:07.3]} 24. Kxf2 {[%clk 0:02:40.7]} 24... Rd8 {[%clk 0:02:06.8]} 25. Rc1
{[%clk 0:02:41.5]} 25... Be6 {[%clk 0:02:05.6]} 26. Rc7 {[%clk 0:02:42.5]} 26...
Rd7 {[%clk 0:02:04.5]} 27. Rxd7 {[%clk 0:02:42.5]} 27... Bxd7 {[%clk 0:02:04.9]}
28. Nxd4 {[%clk 0:02:44.4]} 28... Kf7 {[%clk 0:02:04.3]} 29. Ke3 {[%clk
0:02:44.1]} 29... Ke7 {[%clk 0:02:04.7]} 30. h4 {[%clk 0:02:40.7]} 30... Kd6
{[%clk 0:02:05]} 31. Bf3 {[%clk 0:02:42.2]} 31... Kc5 {[%clk 0:02:02.7]} 32. Bd1
{[%clk 0:02:43.4]} 32... b5 {[%clk 0:02:02.1]} 33. Bb3 {[%clk 0:02:44.4]} 33...
g5 {[%clk 0:02:02.3]} 34. Bf7 {[%clk 0:02:44.5]} 34... Bg4 {[%clk 0:01:59.7]}
35. Ne6+ {[%clk 0:02:38.6]} 35... Kd6 {[%clk 0:01:57.5]} 36. Nd4 {[%clk
0:02:34.7]} 36... gxh4 {[%clk 0:01:54.1]} 37. gxh4 {[%clk 0:02:34.4]} 37... Kc5
{[%clk 0:01:52.2]} 38. Nf5 {[%clk 0:02:18.1]} 38... a5 {[%clk 0:01:50.2]} 39. a3
{[%clk 0:02:16.1]} 39... b4 {[%clk 0:01:48.6]} 40. a4 {[%clk 0:02:12.1]} 40...
Bd1 {[%clk 0:01:46.4]} 41. d4+ {[%clk 0:02:06.9]} 41... Kb6 {[%clk 0:01:45]} 42.
Kd2 {[%clk 0:01:50.1]} 42... Bxa4 {[%clk 0:01:44.5]} 43. Bxh5 {[%clk 0:01:50.9]}
43... b3 {[%clk 0:01:44.8]} 44. Kc3 {[%clk 0:01:50.4]} 1-0

[Event "*** Titled Tuesday 3|2 Blitz"]
[Site "Chess.com"]
[Date "2014.12.30"]
[Round "4"]
[White "Philofive"]
[Black "Sebastian"]
[Result "0-1"]
[WhiteElo "2266"]
[BlackElo "2540"]
[TimeControl "180+2"]
[EndTime "11:46:55 PST"]
[Termination "Sebastian won by resignation"]

1. d4 {[%clk 0:03:00]} 1... Nf6 {[%clk 0:02:51.2]} 2. Bg5 {[%clk 0:02:59.7]}
2... d5 {[%clk 0:02:51]} 3. e3 {[%clk 0:03:00.2]} 3... c6 {[%clk 0:02:43.8]} 4.
Nf3 {[%clk 0:02:54]} 4... Bg4 {[%clk 0:02:42.7]} 5. Nbd2 {[%clk 0:02:41.2]} 5...
Nbd7 {[%clk 0:02:38.6]} 6. Bd3 {[%clk 0:02:37]} 6... e6 {[%clk 0:02:39.2]} 7. h3
{[%clk 0:02:37.5]} 7... Bh5 {[%clk 0:02:40.1]} 8. c3 {[%clk 0:02:37.7]} 8... Be7
{[%clk 0:02:41]} 9. Qc2 {[%clk 0:02:37.5]} 9... Bg6 {[%clk 0:02:41.7]} 10. Bxg6
{[%clk 0:02:35.6]} 10... hxg6 {[%clk 0:02:42.5]} 11. O-O {[%clk 0:02:32.2]}
11... Nh5 {[%clk 0:02:41]} 12. Bxe7 {[%clk 0:02:31.8]} 12... Qxe7 {[%clk
0:02:42.3]} 13. e4 {[%clk 0:02:32]} 13... Nf4 {[%clk 0:02:41.7]} 14. Rfe1 {[%clk
0:02:29.4]} 14... g5 {[%clk 0:02:42.4]} 15. exd5 {[%clk 0:02:12.4]} 15... cxd5
{[%clk 0:02:42.8]} 16. Ne5 {[%clk 0:02:12.3]} 16... Nxe5 {[%clk 0:02:41.4]} 17.
Rxe5 {[%clk 0:02:12.7]} 17... g4 {[%clk 0:02:42.7]} 18. Qa4+ {[%clk 0:01:46.6]}
18... Kf8 {[%clk 0:02:41.8]} 19. Nf1 {[%clk 0:00:42.8]} 19... gxh3 {[%clk
0:02:29.3]} 20. g3 {[%clk 0:00:43.8]} 20... h2+ {[%clk 0:02:29.9]} 21. Kh1
{[%clk 0:00:40.8]} 21... Nh3 {[%clk 0:02:30.4]} 22. Re2 {[%clk 0:00:41.3]} 22...
Qf6 {[%clk 0:02:31]} 23. Qb4+ {[%clk 0:00:41.9]} 23... Kg8 {[%clk 0:02:26.1]}
24. f4 {[%clk 0:00:42.9]} 24... b6 {[%clk 0:02:26]} 25. Rxh2 {[%clk 0:00:36.5]}
25... Qg6 {[%clk 0:02:26.4]} 26. Re1 {[%clk 0:00:35.7]} 26... Nf2+ {[%clk
0:02:26.7]} 27. Kg2 {[%clk 0:00:29.7]} 27... Rxh2+ {[%clk 0:02:09.8]} 28. Nxh2
{[%clk 0:00:27.4]} 28... Qc2 {[%clk 0:02:09.7]} 29. Qb3 {[%clk 0:00:11.4]} 29...
Nd3+ {[%clk 0:02:02.9]} 30. Qxc2 {[%clk 0:00:11.3]} 0-1

[Event "*** Titled Tuesday 3|2 Blitz"]
[Site "Chess.com"]
[Date "2014.12.30"]
[Round "4"]
[White "gumersindo"]
[Black "Vandros57"]
[Result "1-0"]
[WhiteElo "2103"]
[BlackElo "1838"]
[TimeControl "180+2"]
[EndTime "11:47:31 PST"]
[Termination "gumersindo won on time"]

1. d4 {[%clk 0:03:00]} 1... d5 {[%clk 0:02:57.7]} 2. c4 {[%clk 0:03:01]} 2... e6
{[%clk 0:02:57.1]} 3. Nc3 {[%clk 0:03:01.5]} 3... Nf6 {[%clk 0:02:57.1]} 4. Nf3
{[%clk 0:03:03.1]} 4... Be7 {[%clk 0:02:56.2]} 5. Bg5 {[%clk 0:03:04.4]} 5...
O-O {[%clk 0:02:55.5]} 6. e3 {[%clk 0:03:06]} 6... Nbd7 {[%clk 0:02:54.3]} 7.
Rc1 {[%clk 0:03:05.8]} 7... c6 {[%clk 0:02:53.6]} 8. Qc2 {[%clk 0:03:01.4]} 8...
Re8 {[%clk 0:02:40.3]} 9. b3 {[%clk 0:02:58.4]} 9... h6 {[%clk 0:02:31.9]} 10.
Bh4 {[%clk 0:02:55.4]} 10... g5 {[%clk 0:02:24.5]} 11. Bg3 {[%clk 0:02:55.8]}
11... Bb4 {[%clk 0:02:22.1]} 12. Nd2 {[%clk 0:02:54.1]} 12... Qa5 {[%clk
0:02:15.1]} 13. a4 {[%clk 0:02:49.5]} 13... e5 {[%clk 0:01:57.2]} 14. dxe5
{[%clk 0:02:42.8]} 14... Nxe5 {[%clk 0:01:51.6]} 15. Bxe5 {[%clk 0:02:39.8]}
15... Rxe5 {[%clk 0:01:50.3]} 16. Be2 {[%clk 0:02:37.5]} 16... Ne4 {[%clk
0:01:40.2]} 17. Ndxe4 {[%clk 0:02:37]} 17... dxe4 {[%clk 0:01:36.5]} 18. O-O
{[%clk 0:02:36.4]} 18... Bxc3 {[%clk 0:01:36.5]} 19. Qxc3 {[%clk 0:02:36.7]}
19... Qxc3 {[%clk 0:01:36.2]} 20. Rxc3 {[%clk 0:02:34.6]} 20... Re7 {[%clk
0:01:30.5]} 21. Rd1 {[%clk 0:02:35.3]} 21... Be6 {[%clk 0:01:29.2]} 22. Rc2
{[%clk 0:02:35.6]} 22... Rd7 {[%clk 0:01:24.3]} 23. Rcd2 {[%clk 0:02:36.3]}
23... Rad8 {[%clk 0:01:22.3]} 24. Rxd7 {[%clk 0:02:34.8]} 24... Rxd7 {[%clk
0:01:22.5]} 25. Rxd7 {[%clk 0:02:35]} 25... Bxd7 {[%clk 0:01:22.4]} 26. c5
{[%clk 0:02:36.4]} 26... Be6 {[%clk 0:01:18.8]} 27. b4 {[%clk 0:02:33.9]} 27...
f5 {[%clk 0:01:11.3]} 28. Kf1 {[%clk 0:02:34.8]} 28... Kf7 {[%clk 0:01:11]} 29.
Ke1 {[%clk 0:02:35.7]} 29... Kf6 {[%clk 0:01:11]} 30. Kd2 {[%clk 0:02:37]} 30...
Ke5 {[%clk 0:01:10.8]} 31. Kc3 {[%clk 0:02:38.1]} 31... f4 {[%clk 0:01:09.5]}
32. g3 {[%clk 0:02:38.6]} 32... f3 {[%clk 0:00:46.6]} 33. Bf1 {[%clk 0:02:34.7]}
33... h5 {[%clk 0:00:37.2]} 34. h4 {[%clk 0:02:32]} 34... gxh4 {[%clk
0:00:35.8]} 35. gxh4 {[%clk 0:02:32.5]} 35... Bd7 {[%clk 0:00:33.2]} 36. Bc4
{[%clk 0:02:31.2]} 36... Bg4 {[%clk 0:00:19.8]} 37. Bf7 {[%clk 0:02:29.3]} 37...
Kf6 {[%clk 0:00:19.1]} 38. Be8 {[%clk 0:02:26.6]} 38... Ke7 {[%clk 0:00:17.6]}
39. Bg6 {[%clk 0:02:27.2]} 39... Kf6 {[%clk 0:00:17.7]} 40. Bxe4 {[%clk
0:02:28.1]} 40... Ke5 {[%clk 0:00:13.8]} 41. Bg6 {[%clk 0:02:26.5]} 41... Kf6
{[%clk 0:00:08.7]} 42. Bd3 {[%clk 0:02:27.5]} 42... Ke5 {[%clk 0:00:08.9]} 43.
b5 {[%clk 0:02:24.8]} 43... Be6 {[%clk 0:00:07.8]} 44. bxc6 {[%clk 0:02:22.1]}
44... bxc6 {[%clk 0:00:08.1]} 45. Bg6 {[%clk 0:02:22.9]} 45... Bg4 {[%clk
0:00:07.8]} 46. Be8 {[%clk 0:02:22.5]} 46... Kd5 {[%clk 0:00:07.8]} 47. Kb4
{[%clk 0:02:24.1]} 1-0

[Event "*** Titled Tuesday 3|2 Blitz"]
[Site "Chess.com"]
[Date "2014.12.30"]
[Round "4"]
[White "exoticprincess"]
[Black "LittlePeasant"]
[Result "1-0"]
[WhiteElo "2640"]
[BlackElo "2392"]
[TimeControl "180+2"]
[EndTime "11:48:06 PST"]
[Termination "exoticprincess won by resignation"]

1. b3 {[%clk 0:02:59.7]} 1... e5 {[%clk 0:02:54.2]} 2. Bb2 {[%clk 0:03:01.6]}
2... Nc6 {[%clk 0:02:55.9]} 3. e3 {[%clk 0:03:03.2]} 3... Nf6 {[%clk 0:02:57.2]}
4. Bb5 {[%clk 0:03:04.3]} 4... Bd6 {[%clk 0:02:58.5]} 5. Na3 {[%clk 0:03:05.5]}
5... Be7 {[%clk 0:02:59.4]} 6. Nc4 {[%clk 0:03:05.5]} 6... d6 {[%clk 0:03:00]}
7. Ne2 {[%clk 0:03:06.7]} 7... Bd7 {[%clk 0:02:59.6]} 8. O-O {[%clk 0:03:07.1]}
8... O-O {[%clk 0:02:59.4]} 9. d3 {[%clk 0:03:08.3]} 9... a6 {[%clk 0:02:56.3]}
10. Bxc6 {[%clk 0:03:09.5]} 10... Bxc6 {[%clk 0:02:58.2]} 11. e4 {[%clk
0:03:10.4]} 11... Bd7 {[%clk 0:02:56.8]} 12. f4 {[%clk 0:03:11]} 12... exf4
{[%clk 0:02:39.9]} 13. Nxf4 {[%clk 0:03:12.9]} 13... Be6 {[%clk 0:02:38.8]} 14.
Qe1 {[%clk 0:03:10.4]} 14... Bxc4 {[%clk 0:02:03.1]} 15. bxc4 {[%clk 0:03:12.3]}
15... Nd7 {[%clk 0:02:04.4]} 16. Nd5 {[%clk 0:03:11.7]} 16... Bh4 {[%clk
0:02:02.5]} 17. Qe2 {[%clk 0:03:08.5]} 17... c6 {[%clk 0:01:59.7]} 18. Qg4
{[%clk 0:03:08.7]} 18... Ne5 {[%clk 0:01:59.4]} 19. Bxe5 {[%clk 0:02:54.7]}
19... dxe5 {[%clk 0:02:01.3]} 20. Ne3 {[%clk 0:02:55.1]} 20... Bg5 {[%clk
0:01:49.2]} 21. Nf5 {[%clk 0:02:56]} 21... g6 {[%clk 0:01:50.4]} 22. h4 {[%clk
0:02:51.9]} 22... Bf4 {[%clk 0:01:50.4]} 23. g3 {[%clk 0:01:50.7]} 23... h5
{[%clk 0:01:50]} 24. Qe2 {[%clk 0:01:51.7]} 24... gxf5 {[%clk 0:01:36.9]} 25.
gxf4 {[%clk 0:01:52.8]} 25... Qxh4 {[%clk 0:01:37.7]} 26. Rf2 {[%clk 0:01:54.3]}
26... Kh7 {[%clk 0:00:35.6]} 27. Rh2 {[%clk 0:01:37.6]} 27... Rg8+ {[%clk
0:00:36.5]} 28. Kh1 {[%clk 0:01:38]} 28... Rg4 {[%clk 0:00:37.3]} 29. Rg1 {[%clk
0:01:11.9]} 29... Rxg1+ {[%clk 0:00:21.6]} 30. Kxg1 {[%clk 0:01:12.9]} 30...
Qxf4 {[%clk 0:00:21.1]} 31. Qxh5+ {[%clk 0:01:13.5]} 31... Kg7 {[%clk
0:00:22.4]} 32. Rf2 {[%clk 0:01:09.9]} 32... Qc1+ {[%clk 0:00:20.3]} 33. Kh2
{[%clk 0:01:11.3]} 33... Rg8 {[%clk 0:00:15.7]} 34. Qh4 {[%clk 0:00:54.2]} 34...
f6 {[%clk 0:00:03.4]} 35. Rg2+ {[%clk 0:00:53.8]} 35... Kf7 {[%clk 0:00:03.1]}
36. Qh7+ {[%clk 0:00:55]} 1-0

[Event "*** Titled Tuesday 3|2 Blitz"]
[Site "Chess.com"]
[Date "2014.12.30"]
[Round "4"]
[White "grandmastergauri"]
[Black "lexiel"]
[Result "1-0"]
[WhiteElo "2256"]
[BlackElo "1854"]
[TimeControl "180+2"]
[EndTime "11:48:42 PST"]
[Termination "grandmastergauri won on time"]

1. e4 {[%clk 0:02:50.8]} 1... c5 {[%clk 0:02:58]} 2. Nc3 {[%clk 0:02:48.2]} 2...
Nc6 {[%clk 0:02:57.5]} 3. Bb5 {[%clk 0:02:48.8]} 3... Nd4 {[%clk 0:02:54.8]} 4.
Bc4 {[%clk 0:02:48.7]} 4... e6 {[%clk 0:02:55.7]} 5. Nge2 {[%clk 0:02:47.8]}
5... Ne7 {[%clk 0:02:47.5]} 6. O-O {[%clk 0:02:47.5]} 6... Nec6 {[%clk
0:02:46.8]} 7. d3 {[%clk 0:02:43.9]} 7... a6 {[%clk 0:02:46.6]} 8. a4 {[%clk
0:02:44.9]} 8... b6 {[%clk 0:02:42.1]} 9. f4 {[%clk 0:02:45.7]} 9... Bb7 {[%clk
0:02:42.3]} 10. f5 {[%clk 0:02:46.2]} 10... Be7 {[%clk 0:02:40.9]} 11. Ng3
{[%clk 0:02:43.5]} 11... Ne5 {[%clk 0:02:34.9]} 12. Ba2 {[%clk 0:02:40.4]} 12...
Bg5 {[%clk 0:02:34.4]} 13. Nh5 {[%clk 0:02:00.5]} 13... O-O {[%clk 0:02:26.6]}
14. f6 {[%clk 0:02:00]} 14... Bxf6 {[%clk 0:02:13.4]} 15. Nxf6+ {[%clk
0:01:26.8]} 15... gxf6 {[%clk 0:02:13.7]} 16. Bh6 {[%clk 0:01:28.3]} 16... Kh8
{[%clk 0:02:14.3]} 17. Bxf8 {[%clk 0:01:27.2]} 17... Qxf8 {[%clk 0:02:16.2]} 18.
Ne2 {[%clk 0:01:26.8]} 18... Qh6 {[%clk 0:01:58.4]} 19. Nxd4 {[%clk 0:01:23.4]}
19... cxd4 {[%clk 0:02:00.3]} 20. Qc1 {[%clk 0:01:23.4]} 20... Qxc1 {[%clk
0:01:48]} 21. Raxc1 {[%clk 0:01:21.2]} 21... Kg7 {[%clk 0:01:49.5]} 22. h3
{[%clk 0:01:21.2]} 22... h5 {[%clk 0:01:39.6]} 23. Rf2 {[%clk 0:01:22]} 23...
Rh8 {[%clk 0:01:39.4]} 24. Kf1 {[%clk 0:01:18.4]} 24... Rh6 {[%clk 0:01:38.9]}
25. Ke2 {[%clk 0:01:19.8]} 25... Rg6 {[%clk 0:01:39.8]} 26. c3 {[%clk
0:01:18.3]} 26... Rg3 {[%clk 0:00:58.9]} 27. Bb1 {[%clk 0:01:12.2]} 27... Nc6
{[%clk 0:00:40.3]} 28. Rg1 {[%clk 0:01:08.1]} 28... a5 {[%clk 0:00:35.9]} 29.
Rf3 {[%clk 0:01:09.1]} 29... Rg5 {[%clk 0:00:36.5]} 30. Kd2 {[%clk 0:01:07.4]}
30... Ba6 {[%clk 0:00:35.2]} 31. g4 {[%clk 0:01:06.8]} 31... h4 {[%clk
0:00:35.4]} 32. Rgf1 {[%clk 0:01:07]} 32... Rg6 {[%clk 0:00:35.8]} 33. R3f2
{[%clk 0:01:03.3]} 33... Rh6 {[%clk 0:00:34.5]} 34. g5 {[%clk 0:01:03.7]} 34...
Rg6 {[%clk 0:00:35.3]} 35. gxf6+ {[%clk 0:01:03.7]} 35... Kh6 {[%clk 0:00:31.9]}
36. Bc2 {[%clk 0:01:04.4]} 36... dxc3+ {[%clk 0:00:31.6]} 37. bxc3 {[%clk
0:01:05.2]} 37... Ne5 {[%clk 0:00:33.2]} 38. Rf4 {[%clk 0:01:03.8]} 38... Rg3
{[%clk 0:00:31.6]} 39. Rxh4+ {[%clk 0:01:02.4]} 39... Kg5 {[%clk 0:00:32.6]} 40.
Rh8 {[%clk 0:01:01.1]} 40... Rg2+ {[%clk 0:00:24.9]} 41. Kc1 {[%clk 0:01:02.3]}
41... Rh2 {[%clk 0:00:24.3]} 42. Rg8+ {[%clk 0:01:02]} 42... Kh6 {[%clk
0:00:19.3]} 43. Rfg1 {[%clk 0:01:02.2]} 43... Ng6 {[%clk 0:00:11.8]} 44. R1xg6+
{[%clk 0:01:01.1]} 44... fxg6 {[%clk 0:00:11.5]} 45. f7 {[%clk 0:01:03]} 1-0

[Event "*** Titled Tuesday 3|2 Blitz"]
[Site "Chess.com"]
[Date "2014.12.30"]
[Round "4"]
[White "vinceyoung15"]
[Black "162a54f5d"]
[Result "0-1"]
[WhiteElo "1984"]
[BlackElo "2321"]
[TimeControl "180+2"]
[EndTime "11:48:52 PST"]
[Termination "162a54f5d won by resignation"]

1. e4 {[%clk 0:02:58.2]} 1... e5 {[%clk 0:02:58.6]} 2. Nf3 {[%clk 0:02:58.7]}
2... Nc6 {[%clk 0:02:59]} 3. Bb5 {[%clk 0:02:58.4]} 3... a6 {[%clk 0:02:59.1]}
4. Ba4 {[%clk 0:02:59.5]} 4... Nf6 {[%clk 0:02:58.4]} 5. d3 {[%clk 0:02:58.8]}
5... d6 {[%clk 0:02:39.5]} 6. c3 {[%clk 0:02:59.5]} 6... Be7 {[%clk 0:02:38.2]}
7. Nbd2 {[%clk 0:03:00.2]} 7... O-O {[%clk 0:02:39.1]} 8. Nf1 {[%clk 0:03:00.9]}
8... b5 {[%clk 0:02:38.5]} 9. Bb3 {[%clk 0:03:01.4]} 9... d5 {[%clk 0:02:30.2]}
10. Qe2 {[%clk 0:02:59.9]} 10... Be6 {[%clk 0:02:28.8]} 11. Ng3 {[%clk
0:02:58.6]} 11... a5 {[%clk 0:02:28]} 12. O-O {[%clk 0:02:58.2]} 12... a4 {[%clk
0:02:27.9]} 13. Bc2 {[%clk 0:02:57.7]} 13... d4 {[%clk 0:02:24]} 14. Nh4 {[%clk
0:02:46.5]} 14... a3 {[%clk 0:02:17.2]} 15. Nhf5 {[%clk 0:02:42.5]} 15... axb2
{[%clk 0:02:11.3]} 16. Bxb2 {[%clk 0:02:39.8]} 16... Ba3 {[%clk 0:01:53.7]} 17.
Bb3 {[%clk 0:02:31.2]} 17... dxc3 {[%clk 0:01:34.4]} 18. Bxc3 {[%clk 0:02:30.3]}
18... g6 {[%clk 0:01:28.2]} 19. Bxe6 {[%clk 0:02:05.2]} 19... fxe6 {[%clk
0:01:30.1]} 20. Nh6+ {[%clk 0:02:06.2]} 20... Kg7 {[%clk 0:01:30.3]} 21. Ng4
{[%clk 0:02:07]} 21... Nd4 {[%clk 0:01:23.7]} 22. Bxd4 {[%clk 0:01:59.5]} 22...
Qxd4 {[%clk 0:01:12.6]} 23. Rab1 {[%clk 0:01:51.8]} 23... c6 {[%clk 0:00:57.2]}
24. Kh1 {[%clk 0:01:44.7]} 24... Ra7 {[%clk 0:00:30.2]} 25. Ne3 {[%clk
0:01:39.4]} 25... Qd6 {[%clk 0:00:20.9]} 26. Nc2 {[%clk 0:01:36]} 26... Bc5
{[%clk 0:00:21.8]} 27. f4 {[%clk 0:01:33.9]} 27... Rxa2 {[%clk 0:00:18.1]} 28.
fxe5 {[%clk 0:01:33.3]} 28... Qxe5 {[%clk 0:00:19.4]} 29. Qd1 {[%clk 0:01:29.3]}
29... Rd8 {[%clk 0:00:13.1]} 30. Nb4 {[%clk 0:01:08.3]} 30... Bxb4 {[%clk
0:00:10]} 31. Rxb4 {[%clk 0:01:09.5]} 31... Ra7 {[%clk 0:00:08.4]} 32. d4 {[%clk
0:01:06.7]} 32... Qd6 {[%clk 0:00:03.9]} 33. Qb1 {[%clk 0:00:54.6]} 33... e5
{[%clk 0:00:04.7]} 34. d5 {[%clk 0:00:50.1]} 34... cxd5 {[%clk 0:00:05.7]} 35.
Rxb5 {[%clk 0:00:51.1]} 35... d4 {[%clk 0:00:06.4]} 36. Rb6 {[%clk 0:00:49.4]}
36... Qe7 {[%clk 0:00:06.9]} 37. Rbxf6 {[%clk 0:00:43.2]} 37... d3 {[%clk
0:00:06.9]} 38. Rf7+ {[%clk 0:00:32.2]} 38... Qxf7 {[%clk 0:00:07.5]} 39. Rxf7+
{[%clk 0:00:33.6]} 39... Rxf7 {[%clk 0:00:09.4]} 40. Qd1 {[%clk 0:00:33.4]}
40... d2 {[%clk 0:00:10.3]} 41. Nf1 {[%clk 0:00:31.4]} 41... Rxf1+ {[%clk
0:00:10.7]} 42. Qxf1 {[%clk 0:00:31.4]} 42... d1=Q {[%clk 0:00:12.6]} 43. Kg1
{[%clk 0:00:32.5]} 43... Qxf1+ {[%clk 0:00:13.5]} 44. Kxf1 {[%clk 0:00:34.4]}
44... Rd4 {[%clk 0:00:14.9]} 45. Ke2 {[%clk 0:00:36.3]} 45... Rxe4+ {[%clk
0:00:16.6]} 0-1

[Event "*** Titled Tuesday 3|2 Blitz"]
[Site "Chess.com"]
[Date "2014.12.30"]
[Round "4"]
[White "RitvarsReimanis"]
[Black "davopetr"]
[Result "0-1"]
[WhiteElo "2302"]
[BlackElo "2569"]
[TimeControl "180+2"]
[EndTime "11:48:59 PST"]
[Termination "davopetr won by resignation"]

1. d4 {[%clk 0:02:58]} 1... Nf6 {[%clk 0:02:57]} 2. c4 {[%clk 0:02:58.7]} 2...
g6 {[%clk 0:02:57.8]} 3. Nc3 {[%clk 0:02:59.5]} 3... Bg7 {[%clk 0:02:57.8]} 4.
e4 {[%clk 0:03:00.2]} 4... O-O {[%clk 0:02:57.5]} 5. Nf3 {[%clk 0:03:00.5]} 5...
d6 {[%clk 0:02:58.3]} 6. h3 {[%clk 0:03:02]} 6... e5 {[%clk 0:02:52]} 7. d5
{[%clk 0:03:02.4]} 7... Nh5 {[%clk 0:02:40.3]} 8. Be2 {[%clk 0:02:52.3]} 8...
Nf4 {[%clk 0:02:26.8]} 9. g3 {[%clk 0:02:48.5]} 9... Nxe2 {[%clk 0:02:21.6]} 10.
Qxe2 {[%clk 0:02:49.8]} 10... f5 {[%clk 0:02:15.6]} 11. h4 {[%clk 0:02:43.6]}
11... fxe4 {[%clk 0:02:01.1]} 12. Ng5 {[%clk 0:02:44.8]} 12... h6 {[%clk
0:01:39.6]} 13. Ngxe4 {[%clk 0:02:44.7]} 13... Nd7 {[%clk 0:01:40.7]} 14. Be3
{[%clk 0:02:39.3]} 14... Nf6 {[%clk 0:01:35.5]} 15. Nxf6+ {[%clk 0:02:34.9]}
15... Qxf6 {[%clk 0:01:37.4]} 16. O-O-O {[%clk 0:02:25.6]} 16... a6 {[%clk
0:01:30.9]} 17. Qd2 {[%clk 0:02:26]} 17... Kh7 {[%clk 0:01:21.8]} 18. Ne4 {[%clk
0:02:25.8]} 18... Qf3 {[%clk 0:01:19.2]} 19. Nc3 {[%clk 0:02:11.1]} 19... b5
{[%clk 0:01:20.4]} 20. c5 {[%clk 0:02:08.7]} 20... b4 {[%clk 0:01:17.2]} 21. Na4
{[%clk 0:02:07.4]} 21... a5 {[%clk 0:01:04.7]} 22. Kb1 {[%clk 0:01:48.9]} 22...
Bf5+ {[%clk 0:01:05.5]} 23. Ka1 {[%clk 0:01:49.8]} 23... Rfb8 {[%clk 0:00:55.7]}
24. Rhe1 {[%clk 0:01:40.8]} 24... b3 {[%clk 0:00:48.7]} 25. a3 {[%clk
0:01:41.3]} 25... Bc2 {[%clk 0:00:46.9]} 26. Rc1 {[%clk 0:01:39]} 26... Qe4
{[%clk 0:00:48.1]} 27. Nc3 {[%clk 0:01:35.8]} 27... Qd3 {[%clk 0:00:49.2]} 28.
Qxd3 {[%clk 0:01:30.9]} 28... Bxd3 {[%clk 0:00:51.1]} 29. Rcd1 {[%clk
0:01:32.2]} 29... Bc2 {[%clk 0:00:50.9]} 30. Rd2 {[%clk 0:01:33.3]} 30... Rb4
{[%clk 0:00:46.2]} 31. Rc1 {[%clk 0:01:11.4]} 31... e4 {[%clk 0:00:45]} 32.
Rcxc2 {[%clk 0:01:11]} 32... bxc2 {[%clk 0:00:44.4]} 33. Rxc2 {[%clk 0:01:12.1]}
33... Rc4 {[%clk 0:00:45.3]} 34. Kb1 {[%clk 0:00:58.4]} 34... Rb8 {[%clk
0:00:45.1]} 35. Kc1 {[%clk 0:00:57.5]} 35... dxc5 {[%clk 0:00:42]} 36. Kd2
{[%clk 0:00:55.6]} 36... Rxb2 {[%clk 0:00:39.9]} 37. Rxb2 {[%clk 0:00:53.3]}
37... Bxc3+ {[%clk 0:00:40.5]} 38. Kc2 {[%clk 0:00:55]} 38... Bxb2+ {[%clk
0:00:39.9]} 39. Kxb2 {[%clk 0:00:56.9]} 39... a4 {[%clk 0:00:38.6]} 40. g4
{[%clk 0:00:53.5]} 40... h5 {[%clk 0:00:38.7]} 41. g5 {[%clk 0:00:46.3]} 41...
Kg8 {[%clk 0:00:38.8]} 42. Bf4 {[%clk 0:00:43.5]} 42... Rd4 {[%clk 0:00:38.8]}
43. Bxc7 {[%clk 0:00:44]} 43... Rxd5 {[%clk 0:00:40]} 44. Kc3 {[%clk 0:00:39.6]}
44... Rd3+ {[%clk 0:00:41.1]} 45. Kc4 {[%clk 0:00:40.6]} 45... Rxa3 {[%clk
0:00:41.8]} 46. Kxc5 {[%clk 0:00:41]} 46... Rf3 {[%clk 0:00:43.2]} 47. Kb4
{[%clk 0:00:33.8]} 47... a3 {[%clk 0:00:45.1]} 48. Be5 {[%clk 0:00:31.1]} 48...
a2 {[%clk 0:00:46.2]} 0-1